bitfinex/quotes_BTCUSD_20240821
["timestamp","ask_amount","ask_price","bid_price","bid_amount"]
[1724270033782,0.001,61456.0,61455.0,1.139043]
[1724270033985,4e-05,61458.0,61455.0,1.139043]
[1724270033986,4e-05,61458.0,61457.0,0.488145]
[1724270034157,4e-05,61458.0,61457.0,1.30300798]
[1724270034373,4e-05,61458.0,61457.0,1.64300798]
[1724270034580,4e-05,61458.0,61457.0,2.25843798]
[1724270034997,4e-05,61458.0,61457.0,2.15843798]
[1724270035410,4e-05,61458.0,61457.0,1.83800798]
[1724270035615,4e-05,61458.0,61457.0,0.165715]
[1724270035856,4e-05,61458.0,61457.0,0.488145]
[1724270036065,4e-05,61458.0,61457.0,1.30300798]
[1724270036465,4e-05,61458.0,61457.0,1.65540798]
[1724270037405,0.00104,61458.0,61457.0,1.65740798]
[1724270037564,0.00204,61458.0,61457.0,1.66740798]
[1724270037904,4e-05,61458.0,61457.0,1.65540798]
[1724270038042,0.00104,61458.0,61457.0,1.65740798]
[1724270038247,0.00204,61458.0,61457.0,1.66740798]
[1724270038444,0.00104,61458.0,61457.0,1.66540798]
[1724270038651,0.00104,61458.0,61457.0,1.99083798]
[1724270038912,0.00104,61458.0,61457.0,2.21233798]
[1724270039122,0.00104,61458.0,61457.0,2.21333798]
[1724270039321,0.00204,61458.0,61457.0,2.21533798]
[1724270039638,0.00204,61458.0,61457.0,2.31533798]
[1724270040243,0.00204,61458.0,61457.0,5.48033798]
[1724270040447,0.00204,61458.0,61457.0,5.59833798]
[1724270040620,0.00204,61458.0,61457.0,5.57833798]
[1724270040800,0.00204,61458.0,61457.0,5.90576798]
[1724270041001,0.00204,61458.0,61457.0,5.93323798]
[1724270041220,0.00204,61458.0,61457.0,2.94523798]
[1724270041424,0.00204,61458.0,61457.0,3.40466798]
[1724270041636,0.00104,61458.0,61457.0,3.07723798]
[1724270042087,0.00104,61458.0,61457.0,3.40227962]
[1724270042238,0.00204,61458.0,61457.0,3.41227962]
[1724270042439,4e-05,61477.0,61469.0,0.001]
[1724270042712,4e-05,61477.0,61476.0,1.570355]
[1724270042908,4e-05,61477.0,61476.0,1.66265798]
[1724270043148,4e-05,61477.0,61472.0,0.325346]
[1724270043419,4e-05,61477.0,61476.0,0.487995]
[1724270043826,0.00204,61477.0,61476.0,0.813325]
[1724270044463,4e-05,61477.0,61476.0,0.813325]
[1724270044578,4e-05,61477.0,61476.0,1.138655]
[1724270044805,0.003866,61477.0,61476.0,1.138655]
[1724270045232,0.354366,61477.0,61465.0,0.00769632]
[1724270045432,0.354366,61477.0,61476.0,0.001]
[1724270045700,0.354366,61477.0,61476.0,0.163665]
[1724270046197,0.354366,61477.0,61476.0,0.488995]
[1724270046398,0.354366,61477.0,61476.0,0.001]
[1724270046554,0.354366,61477.0,61476.0,0.163665]
[1724270046757,0.354366,61477.0,61476.0,0.813325]
[1724270046958,0.354366,61477.0,61476.0,0.487995]
[1724270047164,0.354366,61477.0,61476.0,0.813325]
[1724270047739,0.000866,61477.0,61476.0,1.30265798]
[1724270048385,0.000866,61477.0,61476.0,1.30365798]
[1724270048611,0.000866,61477.0,61476.0,0.814325]
[1724270048834,0.000866,61477.0,61476.0,0.816325]
[1724270049091,0.338666,61477.0,61476.0,0.490995]
[1724270049289,0.531466,61477.0,61476.0,0.488995]
[1724270049492,0.694128,61477.0,61476.0,0.003]
[1724270049741,0.7960728,61477.0,61476.0,0.002]
[1724270049983,1.83410298,61477.0,61476.0,0.002]
[1724270050192,1.83510298,61477.0,61476.0,0.006]
[1724270050395,1.83510298,61477.0,61456.0,0.162716]
[1724270050396,0.5557,61461.0,61456.0,0.162716]
[1724270050601,0.5557,61461.0,61456.0,0.162717]
[1724270050807,0.162716,61457.0,61450.0,0.325465]
[1724270050978,0.162716,61457.0,61448.0,0.0009086]
[1724270050979,0.5557,61461.0,61456.0,0.325432]
[1724270051190,0.5557,61461.0,61459.0,0.162708]
[1724270051401,0.5557,61461.0,61448.0,0.0009086]
[1724270051402,0.3624,61461.0,61460.0,0.488121]
[1724270051642,0.001,61483.0,61468.0,0.162686]
[1724270051814,0.1933,61482.0,61476.0,0.813325]
[1724270052032,0.1933,61482.0,61476.0,0.487995]
[1724270052178,0.363266,61477.0,61474.0,0.162668]
[1724270052363,0.363266,61477.0,61463.0,0.49229154]
[1724270052564,0.363266,61477.0,61476.0,0.487995]
[1724270052810,0.363266,61477.0,61470.0,0.325361]
[1724270053018,0.363266,61477.0,61464.0,0.16400298]
[1724270053019,0.363266,61477.0,61476.0,0.162665]
[1724270053222,0.363266,61477.0,61468.0,0.162685]
[1724270053463,0.16268,61471.0,61464.0,0.325391]
[1724270053664,0.4189226,61477.0,61460.0,0.004]
[1724270053665,0.508684,61469.0,61463.0,0.162697]
[1724270053869,0.162687,61468.0,61463.0,0.162697]
[1724270054087,0.162687,61468.0,61455.0,0.81773054]
[1724270054088,0.162687,61468.0,61460.0,0.32541]
[1724270054290,0.162687,61468.0,61445.0,0.550394]
[1724270054291,0.3482,61466.0,61445.0,0.550394]
[1724270054503,0.162703,61462.0,61454.0,0.325444]
[1724270054714,0.3482,61466.0,61455.0,0.16400298]
[1724270054920,0.3482,61466.0,61465.0,0.162694]
[1724270055069,0.007,61468.0,61467.0,0.488065]
[1724270055627,0.007,61468.0,61467.0,0.162688]
[1724270055834,0.0783176,61468.0,61464.0,0.162694]
[1724270056038,0.007,61468.0,61463.0,0.001]
[1724270056239,0.162693,61466.0,61463.0,0.001]
[1724270056448,0.3704,61467.0,61466.0,0.162691]
[1724270056864,0.3704,61467.0,61462.0,0.162701]
[1724270057072,0.3704,61467.0,61463.0,0.162698]
[1724270057283,0.369422,61467.0,61457.0,0.325425]
[1724270057491,0.532111,61467.0,61454.0,0.325444]
[1724270057707,0.004,61466.0,61462.0,0.1627]
[1724270057957,0.004,61466.0,61458.0,0.325421]
[1724270058168,0.162694,61465.0,61462.0,0.001]
[1724270058383,0.162695,61465.0,61460.0,0.162707]
[1724270058593,0.162695,61465.0,61458.0,0.325421]
[1724270058799,0.162697,61464.0,61457.0,0.0009086]
[1724270059028,0.1932,61460.0,61457.0,0.0009086]
[1724270059535,0.355908,61460.0,61457.0,0.0009086]
[1724270060190,0.1932,61460.0,61457.0,0.0009086]
[1724270060392,0.01700105,61465.0,61457.0,0.0009086]
[1724270060596,0.3364,61464.0,61463.0,0.162699]
[1724270060725,0.3364,61464.0,61461.0,0.162702]
[1724270061347,0.01700105,61465.0,61464.0,0.162696]
[1724270061530,0.01700105,61465.0,61464.0,0.65209198]
[1724270061726,0.01700105,61465.0,61464.0,1.63887798]
[1724270061975,0.01700105,61465.0,61464.0,1.96427098]
[1724270062145,0.000866,61467.0,61466.0,0.813457]
[1724270062345,0.000866,61467.0,61466.0,1.30284298]
[1724270062547,0.000866,61467.0,61466.0,1.62822598]
[1724270062779,0.000866,61467.0,61466.0,1.81842598]
[1724270062979,0.000866,61467.0,61466.0,1.84142598]
[1724270063220,0.000866,61467.0,61466.0,1.83942598]
[1724270063347,0.000866,61467.0,61466.0,2.30232598]
[1724270063562,0.000866,61467.0,61466.0,7.68782598]
[1724270063965,0.000866,61467.0,61466.0,7.67882598]
[1724270064170,0.000866,61467.0,61466.0,2.79682598]
[1724270064402,0.000866,61467.0,61466.0,2.82382598]
[1724270064798,0.000866,61467.0,61466.0,2.83782598]
[1724270065007,0.000866,61467.0,61466.0,2.83161584]
[1724270065409,0.000866,61467.0,61466.0,2.84561584]
[1724270065616,0.000866,61467.0,61466.0,2.83161584]
[1724270065820,0.000866,61467.0,61466.0,3.52576475]
[1724270066006,4e-05,61491.0,61476.0,1.172655]
[1724270066213,4e-05,61491.0,61476.0,2.51057089]
[1724270066412,4e-05,61491.0,61476.0,2.83590089]
[1724270066629,4e-05,61491.0,61476.0,2.93590089]
[1724270067478,4e-05,61491.0,61476.0,7.98590089]
[1724270067674,4e-05,61491.0,61476.0,8.01390089]
[1724270067876,4e-05,61491.0,61476.0,7.95851798]
[1724270068057,4e-05,61491.0,61476.0,7.73451798]
[1724270068271,4e-05,61491.0,61476.0,7.74851798]
[1724270068617,4e-05,61491.0,61476.0,7.74230182]
[1724270068801,4e-05,61491.0,61476.0,4.12107182]
[1724270068951,4e-05,61491.0,61476.0,2.62607182]
[1724270069158,4e-05,61491.0,61476.0,2.96740182]
[1724270069587,4e-05,61491.0,61476.0,2.95340182]
[1724270069992,4e-05,61491.0,61476.0,2.96740182]
[1724270070192,4e-05,61491.0,61476.0,2.95340182]
[1724270070368,4e-05,61491.0,61476.0,4.53853182]
[1724270070600,4e-05,61491.0,61476.0,4.57991473]
[1724270071285,4e-05,61491.0,61476.0,4.59391473]
[1724270071684,4e-05,61491.0,61476.0,4.57991473]
[1724270071895,4e-05,61491.0,61476.0,4.59391473]
[1724270072087,4e-05,61491.0,61476.0,4.21320182]
[1724270072239,4e-05,61491.0,61476.0,4.19920182]
[1724270072445,4e-05,61491.0,61476.0,2.93940182]
[1724270072667,4e-05,61491.0,61476.0,2.95340182]
[1724270072866,0.1816,61490.0,61476.0,2.25207182]
[1724270073213,0.1816,61490.0,61476.0,2.24207182]
[1724270073422,0.1816,61490.0,61476.0,2.25607182]
[1724270073634,4e-05,61491.0,61476.0,2.59540182]
[1724270073843,4e-05,61491.0,61476.0,2.25607182]
[1724270074241,4e-05,61491.0,61476.0,2.58140182]
[1724270074440,4e-05,61491.0,61476.0,2.68140182]
[1724270074998,4e-05,61491.0,61476.0,2.66740182]
[1724270075221,4e-05,61491.0,61476.0,2.68140182]
[1724270075625,4e-05,61491.0,61476.0,2.67740182]
[1724270075828,4e-05,61491.0,61476.0,2.35207182]
[1724270076190,4e-05,61491.0,61476.0,2.35407182]
[1724270076392,4e-05,61491.0,61476.0,2.37007182]
[1724270076586,4e-05,61491.0,61476.0,2.35607182]
[1724270076787,4e-05,61491.0,61476.0,2.36507182]
[1724270077007,0.344,61488.0,61476.0,3.24707182]
[1724270077212,0.344,61488.0,61476.0,2.33607182]
[1724270077440,0.344,61488.0,61476.0,2.36407182]
[1724270077646,0.344,61488.0,61476.0,2.36507182]
[1724270077821,0.000906,61477.0,61476.0,1.67977182]
[1724270078554,0.000906,61477.0,61476.0,1.31665798]
[1724270079034,0.000906,61477.0,61476.0,1.33065798]
[1724270079525,0.000906,61477.0,61476.0,1.34665798]
[1724270079749,0.000906,61477.0,61476.0,1.34965798]
[1724270080011,0.000906,61477.0,61476.0,1.38665798]
[1724270080240,0.000906,61477.0,61476.0,2.06998798]
[1724270080512,0.18454,61491.0,61490.0,1.171396]
[1724270080513,4e-05,61491.0,61490.0,1.171396]
[1724270080788,0.00826,61524.0,61511.0,0.812862]
[1724270081031,0.00826,61524.0,61511.0,1.98205498]
[1724270081306,0.3336,61522.0,61511.0,1.98205498]
[1724270081569,0.3336,61522.0,61511.0,2.00505498]
[1724270081851,0.19276,61524.0,61519.0,1.864559]
[1724270081852,0.00826,61524.0,61519.0,1.864559]
[1724270082108,0.00826,61524.0,61519.0,2.40846198]
[1724270082344,0.00826,61524.0,61519.0,2.83356398]
[1724270082569,0.00826,61524.0,61523.0,1.511383]
[1724270082816,0.00826,61524.0,61523.0,1.736668]
[1724270083063,0.00826,61524.0,61523.0,1.32478598]
[1724270083295,0.00826,61524.0,61523.0,6.37678598]
[1724270083536,0.00826,61524.0,61523.0,6.70086698]
[1724270083775,0.00826,61524.0,61523.0,6.80086698]
[1724270084045,0.00826,61524.0,61523.0,1.74986698]
[1724270084273,0.00826,61524.0,61523.0,5.00186698]
[1724270084576,0.00826,61524.0,61523.0,4.45186698]
[1724270084810,0.00826,61524.0,61523.0,1.83478598]
[1724270085056,0.00826,61524.0,61523.0,1.42478598]
[1724270085301,0.00826,61524.0,61523.0,6.81686698]
[1724270085527,0.00826,61524.0,61523.0,6.81886698]
[1724270085994,0.00826,61524.0,61523.0,6.49178598]
[1724270086223,0.00826,61524.0,61523.0,2.38578598]
[1724270086733,0.0083,61524.0,61523.0,2.73886698]
[1724270087019,0.0083,61524.0,61523.0,2.72486698]
[1724270087206,0.0083,61524.0,61523.0,2.39978598]
[1724270087407,0.0083,61524.0,61523.0,2.41378598]
[1724270087606,0.0083,61524.0,61523.0,2.73886698]
[1724270087833,0.0083,61524.0,61523.0,2.41078598]
[1724270088081,0.0083,61524.0,61523.0,1.45278598]
[1724270088333,0.0083,61524.0,61523.0,1.35278598]
[1724270088579,0.0083,61524.0,61523.0,1.32978598]
[1724270089059,0.0083,61524.0,61523.0,1.31578598]
[1724270089543,0.0083,61524.0,61523.0,1.00470498]
[1724270089776,0.0083,61524.0,61523.0,0.515621]
[1724270090031,0.0083,61524.0,61523.0,0.487621]
[1724270090267,0.0083,61524.0,61523.0,0.501621]
[1724270090500,0.0083,61524.0,61523.0,0.840702]
[1724270090737,0.0083,61524.0,61523.0,0.97670498]
[1724270090976,0.0083,61524.0,61523.0,1.30178598]
[1724270091211,0.0083,61524.0,61523.0,1.32078598]
[1724270091445,0.0083,61524.0,61523.0,1.31178598]
[1724270091693,0.0083,61524.0,61523.0,1.79686698]
[1724270091925,0.0083,61524.0,61523.0,6.37686698]
[1724270092328,0.0083,61524.0,61523.0,1.79686698]
[1724270092332,0.0083,61524.0,61523.0,1.77386698]
[1724270092538,0.0083,61524.0,61523.0,1.44878598]
[1724270092826,0.0083,61524.0,61523.0,1.33878598]
[1724270093119,0.0083,61524.0,61523.0,1.34778598]
[1724270093367,0.0083,61524.0,61523.0,1.54628598]
[1724270093618,0.0083,61524.0,61523.0,1.87636698]
[1724270093856,0.0083,61524.0,61523.0,5.31736698]
[1724270094107,0.0083,61524.0,61523.0,4.78736698]
[1724270094360,0.0083,61524.0,61523.0,3.83986698]
[1724270094604,0.0083,61524.0,61523.0,2.38086698]
[1724270094853,0.0083,61524.0,61523.0,1.35878598]
[1724270095098,0.3446,61524.0,61523.0,1.35878598]
[1724270095823,0.3446,61524.0,61523.0,1.31478598]
[1724270096374,0.5328,61524.0,61523.0,0.66062398]
[1724270096634,0.5328,61524.0,61523.0,0.008]
[1724270096881,0.5328,61524.0,61521.0,0.162543]
[1724270097138,0.5328,61524.0,61505.0,0.49229154]
[1724270097139,1.182952,61524.0,61523.0,0.009]
[1724270097379,1.182952,61524.0,61504.0,0.49229154]
[1724270097380,0.3363,61519.0,61504.0,0.49229154]
[1724270097619,0.1093,61524.0,61504.0,0.49229154]
[1724270097620,0.3363,61513.0,61504.0,0.49229154]
[1724270097875,0.3363,61513.0,61505.0,0.325176]
[1724270098113,0.325153,61510.0,61490.0,0.03]
[1724270098370,0.3363,61509.0,61503.0,0.325186]
[1724270098626,0.3363,61509.0,61504.0,0.325181]
[1724270098911,0.3363,61509.0,61505.0,0.162587]
[1724270099765,0.3363,61509.0,61500.0,0.3252]
[1724270099766,0.3363,61509.0,61504.0,0.001]
[1724270099973,0.3363,61509.0,61506.0,0.162585]
[1724270100220,0.3363,61509.0,61503.0,0.325184]
[1724270100471,0.3363,61509.0,61481.0,0.390439]
[1724270100472,0.013,61509.0,61508.0,1.00690298]
[1724270100710,0.006,61509.0,61508.0,1.75722298]
[1724270100950,0.3569,61521.0,61520.0,1.137839]
[1724270101234,0.3569,61521.0,61520.0,1.30184198]
[1724270101534,0.1905,61524.0,61523.0,0.487621]
[1724270101535,0.0083,61524.0,61523.0,0.487621]
[1724270101859,0.0083,61524.0,61523.0,1.68086698]
[1724270102083,0.0083,61524.0,61523.0,1.65686698]
[1724270102744,0.0083,61524.0,61523.0,1.68086698]
[1724270102924,0.0083,61524.0,61523.0,2.00794798]
[1724270103149,0.0083,61524.0,61523.0,1.77986698]
[1724270103359,0.0083,61524.0,61523.0,2.10494798]
[1724270103589,0.0093,61524.0,61523.0,1.79486698]
[1724270103788,0.0103,61524.0,61523.0,1.78486698]
[1724270104620,0.0103,61524.0,61523.0,2.13594798]
[1724270104846,0.0103,61524.0,61523.0,6.79194798]
[1724270105090,0.0103,61524.0,61523.0,6.79694798]
[1724270105289,0.000825,61538.0,61528.0,1.822647]
[1724270105494,0.000825,61538.0,61528.0,2.10964998]
[1724270105699,0.000825,61538.0,61537.0,1.527424]
[1724270105903,0.000825,61538.0,61537.0,2.46444098]
[1724270106115,0.000825,61538.0,61537.0,2.46044098]
[1724270106318,0.000825,61538.0,61537.0,2.46444098]
[1724270106524,0.000825,61538.0,61537.0,2.46044098]
[1724270106727,0.000825,61538.0,61537.0,1.75653398]
[1724270107139,0.001825,61538.0,61537.0,1.77053398]
[1724270107356,0.001825,61538.0,61537.0,1.43952698]
[1724270107607,0.001825,61538.0,61537.0,1.76453398]
[1724270107818,0.002825,61538.0,61537.0,1.77853398]
[1724270108033,0.002825,61538.0,61537.0,1.76453398]
[1724270108257,0.002825,61538.0,61537.0,7.68864098]
[1724270108460,0.002825,61538.0,61537.0,8.37404798]
[1724270108905,0.001825,61538.0,61537.0,8.36604798]
[1724270109110,0.001825,61538.0,61537.0,5.63804798]
[1724270109337,0.001825,61538.0,61537.0,5.66604798]
[1724270109554,0.000825,61538.0,61537.0,3.56564098]
[1724270109763,0.000825,61538.0,61537.0,1.65653398]
[1724270110023,0.000825,61538.0,61537.0,1.67053398]
[1724270110246,0.000825,61538.0,61537.0,1.31552698]
[1724270110471,0.000825,61538.0,61537.0,1.32952698]
[1724270110692,0.000825,61538.0,61537.0,1.34552698]
[1724270110911,0.000825,61538.0,61537.0,1.65653398]
[1724270111133,0.000865,61538.0,61537.0,1.67053398]
[1724270111787,0.000865,61538.0,61537.0,1.69353398]
[1724270112013,0.000865,61538.0,61537.0,1.77053398]
[1724270112670,0.000865,61538.0,61537.0,1.77853398]
[1724270112880,0.000865,61538.0,61537.0,1.77053398]
[1724270113328,0.000865,61538.0,61537.0,1.78253398]
[1724270113539,0.000865,61538.0,61537.0,1.77053398]
[1724270113753,0.000865,61538.0,61537.0,1.75653398]
[1724270114195,0.000865,61538.0,61537.0,1.77853398]
[1724270114417,0.000865,61538.0,61537.0,1.80153398]
[1724270114641,0.000865,61538.0,61537.0,1.78753398]
[1724270114850,0.000865,61538.0,61537.0,1.80053398]
[1724270115254,0.000865,61538.0,61537.0,1.77753398]
[1724270115475,0.000865,61538.0,61537.0,1.44452698]
[1724270115700,0.347865,61538.0,61537.0,1.42652698]
[1724270115931,0.000865,61538.0,61537.0,1.42652698]
[1724270116379,0.000865,61538.0,61537.0,1.31352698]
[1724270116605,0.000865,61538.0,61537.0,0.812517]
[1724270116606,0.545265,61538.0,61537.0,0.812517]
[1724270116835,0.545265,61538.0,61537.0,0.98851998]
[1724270117085,0.545265,61538.0,61537.0,1.31352698]
[1724270117321,0.545265,61538.0,61537.0,0.838517]
[1724270117765,0.545265,61538.0,61537.0,0.824517]
[1724270117989,0.545265,61538.0,61537.0,0.837517]
[1724270118214,0.545265,61538.0,61537.0,0.83732072]
[1724270118430,0.545265,61538.0,61537.0,0.82532072]
[1724270118863,0.545265,61538.0,61537.0,0.83732072]
[1724270119084,0.545265,61538.0,61537.0,0.82532072]
[1724270119521,0.347865,61538.0,61537.0,1.3133307]
[1724270119735,0.347865,61538.0,61537.0,1.3263307]
[1724270119946,0.000865,61538.0,61537.0,2.1062377]
[1724270120611,0.000865,61538.0,61537.0,2.0942377]
[1724270120849,0.000865,61538.0,61537.0,1.7513377]
[1724270121273,0.000865,61538.0,61537.0,1.7383377]
[1724270121753,0.000865,61538.0,61537.0,1.7263377]
[1724270121993,0.000865,61538.0,61537.0,1.7403377]
[1724270122672,0.000865,61538.0,61537.0,1.7543377]
[1724270122932,0.000865,61538.0,61537.0,1.26532772]
[1724270123152,0.549865,61538.0,61537.0,1.16532772]
[1724270123373,0.549865,61538.0,61537.0,0.84032072]
[1724270123805,0.549865,61538.0,61537.0,1.3293307]
[1724270124029,0.549865,61538.0,61537.0,1.3148307]
[1724270124248,0.549865,61538.0,61537.0,1.3288307]
[1724270124891,0.549865,61538.0,61537.0,0.83982072]
[1724270125339,0.549865,61538.0,61537.0,0.82582072]
[1724270125559,0.549865,61538.0,61537.0,0.83682072]
[1724270125771,0.549865,61538.0,61537.0,0.82282072]
[1724270125986,0.549865,61538.0,61537.0,0.83582072]
[1724270126197,0.549865,61538.0,61537.0,0.82482072]
[1724270126638,0.549865,61538.0,61537.0,0.014]
[1724270126849,0.549865,61538.0,61537.0,0.50151]
[1724270128272,0.549865,61538.0,61537.0,0.826517]
[1724270128488,0.549865,61538.0,61537.0,1.137524]
[1724270128914,0.549865,61538.0,61537.0,1.149524]
[1724270129152,0.549865,61538.0,61537.0,1.137524]
[1724270129653,0.00825,61548.0,61537.0,0.17000298]
[1724270129656,0.00825,61548.0,61547.0,1.463293]
[1724270129913,0.00825,61548.0,61547.0,2.92245244]
[1724270130161,0.00825,61548.0,61547.0,2.40614998]
[1724270130413,0.00745,61548.0,61547.0,2.40614998]
[1724270130661,0.00745,61548.0,61547.0,6.391024]
[1724270130904,0.005,61550.0,61549.0,1.467248]
[1724270131192,0.00826,61553.0,61552.0,1.142248]
[1724270131451,5e-05,61560.0,61559.0,0.489336]
[1724270131698,5e-05,61560.0,61559.0,6.27912098]
[1724270131945,5e-05,61560.0,61559.0,5.88790298]
[1724270132700,0.005,61575.0,61574.0,0.659406]
[1724270132951,0.005,61575.0,61574.0,1.92284498]
[1724270133198,0.005,61575.0,61574.0,2.2918312]
[1724270133419,0.005,61575.0,61574.0,7.29965698]
[1724270133862,0.00060257,61580.0,61579.0,1.466537]
[1724270134088,0.00012005,61619.0,61603.0,0.03]
[1724270134309,0.0119345,61641.0,61634.0,0.162248]
[1724270134551,0.0119345,61641.0,61615.0,0.16400298]
[1724270134552,0.3653,61635.0,61622.0,0.001]
[1724270134772,0.3653,61635.0,61627.0,0.001]
[1724270134982,0.1973,61634.0,61627.0,0.001]
[1724270135201,0.002,61629.0,61615.0,0.001]
[1724270135430,0.16400298,61628.0,61608.0,0.49329154]
[1724270135648,0.002,61615.0,61608.0,0.49229154]
[1724270135900,0.16400298,61614.0,61609.0,0.49229154]
[1724270136114,0.16400298,61614.0,61584.0,0.324755]
[1724270136115,0.16234,61599.0,61598.0,0.49229154]
[1724270136348,0.1903,61599.0,61598.0,0.49229154]
[1724270136560,0.1903,61599.0,61593.0,0.001]
[1724270136769,0.352641,61599.0,61589.0,0.001]
[1724270136979,0.1903,61599.0,61589.0,0.001]
[1724270137662,0.1903,61599.0,61598.0,0.163342]
[1724270137879,0.1903,61599.0,61598.0,0.65402998]
[1724270138306,0.1903,61599.0,61598.0,0.32734498]
[1724270138528,0.5285,61599.0,61598.0,0.32734498]
[1724270138738,0.3382,61609.0,61608.0,0.165316]
[1724270138962,0.3382,61609.0,61608.0,0.65195198]
[1724270139176,0.324536,61627.0,61614.0,0.001]
[1724270139177,0.5341,61624.0,61614.0,0.001]
[1724270139390,0.324556,61623.0,61608.0,0.32727798]
[1724270139599,0.5361,61624.0,61609.0,0.00096]
[1724270139600,0.324571,61620.0,61609.0,0.00096]
[1724270139813,0.32461,61613.0,61606.0,0.00096]
[1724270140017,0.3631,61614.0,61608.0,0.002]
[1724270140239,0.162317,61608.0,61604.0,0.00096]
[1724270140446,0.324644,61606.0,61598.0,0.00096]
[1724270140652,0.002,61609.0,61598.0,0.00096]
[1724270140653,0.164313,61609.0,61608.0,0.001]
[1724270140859,0.48894,61609.0,61608.0,0.001]
[1724270141541,0.48894,61609.0,61598.0,0.00096]
[1724270141542,0.32468,61599.0,61598.0,0.49229154]
[1724270141747,0.324696,61596.0,61585.0,0.00096]
[1724270141957,0.162362,61591.0,61585.0,0.00096]
[1724270142169,0.3594,61590.0,61585.0,0.163336]
[1724270142602,0.00283007,61552.0,61551.0,0.487399]
[1724270142825,0.00283007,61552.0,61551.0,1.167265]
[1724270143037,0.53953007,61552.0,61537.0,0.0009064]
[1724270143248,0.53953007,61552.0,61538.0,0.03]
[1724270143457,0.53953007,61552.0,61543.0,0.002]
[1724270143669,0.53953007,61552.0,61545.0,0.002]
[1724270143879,0.53953007,61552.0,61551.0,0.176466]
[1724270144138,0.53953007,61552.0,61551.0,0.66740198]
[1724270144370,0.00283007,61552.0,61551.0,0.75516357]
[1724270144593,0.364,61581.0,61580.0,0.16439]
[1724270144811,0.364,61581.0,61580.0,0.48917]
[1724270145082,0.364,61581.0,61580.0,0.65317298]
[1724270145307,0.364,61581.0,61580.0,0.65117298]
[1724270145516,0.364,61581.0,61575.0,0.324805]
[1724270145719,0.364,61581.0,61577.0,0.324794]
[1724270145943,0.1992,61577.0,61537.0,0.0309064]
[1724270146162,0.3618,61566.0,61553.0,0.49229154]
[1724270146376,0.3618,61566.0,61551.0,0.001]
[1724270146377,0.002,61564.0,61551.0,0.001]
[1724270146590,0.324905,61557.0,61542.0,0.002]
[1724270146799,0.2012,61563.0,61546.0,0.002]
[1724270147009,0.1992,61563.0,61557.0,0.324901]
[1724270147224,0.1992,61563.0,61562.0,0.487312]
[1724270147433,0.3618,61566.0,61565.0,0.487288]
[1724270147649,0.3618,61566.0,61565.0,0.97614998]
[1724270147879,0.3618,61566.0,61565.0,0.65129098]
[1724270148082,0.1992,61573.0,61565.0,0.65129098]
[1724270148083,0.1992,61573.0,61572.0,0.162411]
[1724270148298,0.1992,61573.0,61563.0,0.324869]
[1724270148299,0.1992,61573.0,61566.0,0.16400298]
[1724270148524,0.3618,61575.0,61569.0,0.002]
[1724270148766,0.3618,61575.0,61574.0,0.487218]
[1724270148986,0.3618,61575.0,61574.0,0.32640898]
[1724270149435,0.3618,61575.0,61574.0,0.65122098]
[1724270149859,0.3728,61575.0,61569.0,0.001]
[1724270150075,0.3728,61575.0,61574.0,0.162406]
[1724270150292,0.011,61575.0,61574.0,0.97803298]
[1724270150504,0.011,61575.0,61574.0,1.30203128]
[1724270150715,0.011,61575.0,61574.0,0.65040728]
[1724270150929,0.011,61575.0,61569.0,0.325837]
[1724270150930,0.011,61575.0,61569.0,0.001]
[1724270151142,0.1943,61581.0,61569.0,0.16400298]
[1724270151376,0.004,61575.0,61573.0,0.162407]
[1724270151590,0.1943,61581.0,61576.0,0.162399]
[1724270151818,0.1943,61581.0,61569.0,0.16400298]
[1724270151819,0.1943,61581.0,61571.0,0.324828]
[1724270152024,0.1943,61581.0,61572.0,0.324822]
[1724270152025,0.001,61575.0,61572.0,0.324822]
[1724270152436,0.001,61575.0,61574.0,0.162406]
[1724270152685,0.004,61575.0,61574.0,0.162406]
[1724270152910,0.1963,61581.0,61558.0,0.326894]
[1724270153134,0.002,61578.0,61561.0,0.002]
[1724270153347,0.162399,61577.0,61564.0,0.002]
[1724270153560,0.26400298,61580.0,61551.0,0.324931]
[1724270153561,0.1,61580.0,61570.0,0.324832]
[1724270153776,0.1,61580.0,61568.0,0.324839]
[1724270154019,0.1,61580.0,61574.0,0.324809]
[1724270154231,0.1943,61581.0,61580.0,0.16439]
[1724270154448,0.1834,61589.0,61588.0,0.002]
[1724270154654,0.3391,61598.0,61597.0,0.162345]
[1724270154873,0.3391,61598.0,61597.0,0.811727]
[1724270155302,0.3391,61598.0,61597.0,0.488036]
[1724270155516,0.3391,61598.0,61589.0,0.16400298]
[1724270155751,0.3391,61598.0,61559.0,0.002]
[1724270155752,0.007,61589.0,61588.0,0.001]
[1724270155967,0.007,61589.0,61568.0,0.324838]
[1724270155968,0.007,61589.0,61573.0,0.002]
[1724270156211,0.007,61589.0,61584.0,0.162379]
[1724270156477,0.162372,61587.0,61579.0,0.162392]
[1724270156692,0.368,61588.0,61573.0,0.002]
[1724270156946,0.368,61588.0,61583.0,0.002]
[1724270157158,0.368,61588.0,61587.0,0.162371]
[1724270157361,0.368,61588.0,61587.0,0.487114]
[1724270157571,0.368,61588.0,61584.0,0.001]
[1724270157777,0.368,61588.0,61584.0,0.163379]
[1724270158202,0.680831,61585.0,61584.0,0.001]
[1724270158418,1.22193398,61585.0,61584.0,0.001]
[1724270158637,1.359685,61585.0,61584.0,0.001]
[1724270158844,0.002,61584.0,61569.0,0.326838]
[1724270159056,0.002,61582.0,61563.0,0.001]
[1724270159266,0.3541,61571.0,61562.0,0.162437]
[1724270159498,0.1937,61570.0,61565.0,0.162427]
[1724270159692,0.1937,61570.0,61566.0,0.325853]
[1724270159895,0.1937,61570.0,61560.0,0.324883]
[1724270159896,0.1937,61570.0,61569.0,0.487257]